Cogmind - Beta 10.2 @@@ ROGUE MODE // 2021.06.05 @ 19:36:03 Player: Mares Result: Destroyed by G-67 Veteran with Electrolaser Performance ------------- Evolutions (6) 3000 Regions Visited (25) 5000 Robots Destroyed (229) 1145 Value Destroyed (9254) 9254 Prototype IDs (39) 780 Alien Tech Used (0) 0 Bonus (841) 841 TOTAL SCORE: 20020 Bonus ------- High Alert Combat Kills 194 Follower Combat Kills 469 Entered Garrisons 200 Used RIF Installer 500 Met Data Miner 300 Met Imprinter 300 Friendly Fire -1122 Cogmind --------- Core Integrity 0/1150 Matter 96/300 Energy 95/100 System Corruption 3% Temperature Cool (21) Movement Core (50) Location -4/Factory Parts ------- > --- POWER (1) -------- (None) > --- PROPULSION (4) --- (None) > --- UTILITY (11) ----- Advanced Signal Interpreter Relay Coupler [Programmer] (69) > --- WEAPON (3) ------- (None) > --- INVENTORY (4) ---- Micro Fission Core Improved Energy Well (600) Improved Remote Datajack Ripper Peak State ------------ > --- POWER ------------ Antimatter Reactor > --- PROPULSION ------- Heavy Treads Experimental Flexi-carbon Leg > --- UTILITY ---------- High-capacity Storage Unit High-capacity Storage Unit High-capacity Storage Unit Experimental Sensor Array Advanced Signal Interpreter Damper Plating Experimental Thermal Shield Hacking Suite > --- WEAPON ----------- Heavy Plasma Cannon Advanced EMP Blaster Improved Remote Datajack > --- INVENTORY -------- Light Neutrino Core Antimatter Reactor Heavy Treads Improved Energy Well Advanced Sensor Array Precision Energy Filter Microactuators Experimental Utility Shielding Medium Reflective Plating Medium Insulated Plating Advanced Force Field Relay Coupler [NC] Relay Coupler [Programmer] Relay Coupler [Programmer] Relay Coupler [Programmer] Gauss Rifle Flak Gun Coil Gun Antimatter Cannon Enhanced Gauss Cannon Improved Proton Missile Launcher Heavy Missile Launcher Long-range Missile Launcher Great Axe Great Axe Heavy Pick [Rating: 98] Favorites ----------- Power Reinforced Deuterium Engine Engine Reinforced Deuterium Engine Power Core Neutrino Core Reactor Antimatter Reactor Propulsion Carbon-fiber Leg Treads Heavy Treads Leg Carbon-fiber Leg Wheel Armored Wheel Hover Unit Improved Antigrav System Flight Unit Cesium-ion Thruster Utility High-capacity Storage Unit Device Advanced Sensor Array Storage High-capacity Storage Unit Processor Advanced Signal Interpreter Hackware Hacking Suite Protection Improved Light Armor Plating Weapon Flak Gun Energy Gun Beamcaster Energy Cannon Heavy Plasma Cannon Ballistic Gun Flak Gun Ballistic Cannon Enhanced Gauss Cannon Launcher Advanced EMP Blaster Special Weapon Improved Remote Datajack Slashing Weapon Great Axe Piercing Weapon Heavy Pick Build | -11 -10 -10 -10 -9 -8 -7 -7 -7 -7 -6 -6 -6 -6 -6 -6 -6 -5 -5 -5 -5 -5 -5 -5 -4 -4 ------- Run | Scr Mat Min Exi Min Mat Fac Low Low Zio Pro Fac Gar Fac Low Low Dat Pro Fac Was Fac Upp Upp War Pro Fac Slots Evolved 12 | . . . . . 4 2 . . . . 2 . . . . . . 2 . . . . . . 2 Power . | . . . . . . . . . . . . . . . . . . . . . . . . . . Propulsion 2 | . . . . . 1 . . . . . . . . . . . . . . . . . . . 1 Utility 9 | . . . . . 3 2 . . . . 2 . . . . . . 1 . . . . . . 1 Weapon 1 | . . . . . . . . . . . . . . . . . . 1 . . . . . . . Parts Attached 337 | 6 7 7 1 2 58 36 4 13 1 7 9 15 46 9 8 . 3 14 13 36 9 3 . 18 12 Power 21 | 1 1 1 . . 2 2 . 1 . . . 1 3 . . . . 2 1 2 1 . . 2 1 Engine 13 | 1 1 1 . . 2 2 . 1 . . . 1 2 . . . . 1 . . . . . . 1 Core 6 | . . . . . . . . . . . . . 1 . . . . 1 . 2 1 . . 1 . Reactor 2 | . . . . . . . . . . . . . . . . . . . 1 . . . . 1 . Propulsion 58 | 2 . 2 . . 18 6 . 1 . 2 3 1 10 . 1 . . 7 1 2 . . . . 2 Treads 20 | . . 1 . . 4 . . 1 . 2 2 1 5 . . . . 1 1 2 . . . . . Leg 20 | . . . . . 10 6 . . . . . . . . . . . 4 . . . . . . . Wheel 13 | 2 . 1 . . . . . . . . 1 . 5 . 1 . . 2 . . . . . . 1 Hover 4 | . . . . . 3 . . . . . . . . . . . . . . . . . . . 1 Flight 1 | . . . . . 1 . . . . . . . . . . . . . . . . . . . . Utility 130 | 1 6 . 1 . 23 14 2 3 1 2 4 6 8 5 5 . 2 2 7 21 4 3 . 7 3 Device 43 | . . . . . 8 6 1 1 . 1 3 . 3 2 2 . 1 1 3 6 1 2 . 2 . Storage 10 | 1 4 . 1 . . . . . 1 . 1 . . . . . . . 1 . . 1 . . . Processor 5 | . . . . . 1 . . . . . . . . 1 . . . . . 1 1 . . . 1 Hackware 8 | . . . . . . 2 . . . . . 1 1 . . . . . 1 1 . . . . 2 Protection 64 | . 2 . . . 14 6 1 2 . 1 . 5 4 2 3 . 1 1 2 13 2 . . 5 . Artifact . | . . . . . . . . . . . . . . . . . . . . . . . . . . Weapon 128 | 2 . 4 . 2 15 14 2 8 . 3 2 7 25 4 2 . 1 3 4 11 4 . . 9 6 Energy Gun 7 | . . . . . 2 2 . 1 . 1 . . 1 . . . . . . . . . . . . Energy Cannon 17 | . . 1 . . 2 1 . 2 . . . 2 3 1 . . . . 1 1 1 . . . 2 Ballistic Gun 44 | 2 . 2 . 1 9 6 1 4 . . 1 2 10 . 1 . . 1 1 1 1 . . . 1 Ballistic Cannon 5 | . . . . . . . . . . . 1 . . . . . . 1 . 1 . . . . 2 Launcher 26 | . . 1 . 1 2 2 1 1 . 2 . 3 2 3 . . 1 . 1 1 . . . 5 . Special Weapon 6 | . . . . . . . . . . . . . 3 . . . . 1 1 . . . . . 1 Impact Weapon . | . . . . . . . . . . . . . . . . . . . . . . . . . . Slashing Weapon 15 | . . . . . . 3 . . . . . . 4 . . . . . . 4 1 . . 3 . Piercing Weapon 8 | . . . . . . . . . . . . . 2 . 1 . . . . 3 1 . . 1 . Special Melee Weapon . | . . . . . . . . . . . . . . . . . . . . . . . . . . Unidentified Prototypes 19 | . . . . . 5 4 . . . . 1 . 2 1 1 . . 1 2 2 . . . . . Parts Lost 75 | . . 3 . . 9 5 . 7 . 1 . 4 12 . 1 . . . . 2 . . . 14 17 Power 12 | . . 1 . . 1 1 . 1 . . . . 3 . . . . . . 1 . . . 2 2 Propulsion 22 | . . 1 . . 6 2 . 3 . . . 1 4 . . . . . . 1 . . . 2 2 Utility 22 | . . . . . 1 1 . 1 . . . 2 3 . 1 . . . . . . . . 7 6 Weapon 19 | . . 1 . . 1 1 . 2 . 1 . 1 2 . . . . . . . . . . 3 7 Highest Loss Streak 12 | . . 2 . . 3 3 . 5 . 1 . 3 4 . 1 . . . . 1 . . . 11 12 Average Slot Usage (%) 92 | . 100 99 100 100 99 98 100 95 84 89 93 92 96 100 98 100 100 97 86 89 86 88 88 72 63 Engine 5 | . 14 13 14 14 8 6 7 6 7 7 6 6 5 6 6 6 6 4 . . . . . . 1 Core 1 | . . . . . . . . . . . . . . . . . . . . 2 5 5 5 4 2 Treads 3 | . . 3 . . 2 . . . 7 12 16 5 6 . . . . . 2 5 5 5 5 1 . Leg 9 | . . . . . 23 22 23 18 . . . . . . . . . 10 10 5 5 5 5 1 . Wheel 3 | . 28 24 28 28 . . . . . . 1 6 11 20 20 20 20 6 . . . . . . 1 Device 10 | . . . . . 6 10 14 14 8 6 14 11 10 11 13 13 12 11 9 16 14 17 17 12 13 Storage 18 | . 25 28 28 28 18 15 15 15 21 23 20 20 20 20 20 20 20 17 17 17 17 17 17 17 14 Processor 7 | . . . . . 7 7 7 7 7 7 6 6 6 11 6 6 6 5 5 5 10 11 11 11 11 Hackware 6 | . . . . . . 14 15 15 15 15 13 13 11 6 6 6 6 5 7 5 . . . . 2 Protection 6 | . 2 . . . 12 4 . . . . . 7 8 8 11 13 13 14 5 7 5 5 5 3 . Energy Cannon 1 | . . 10 14 14 1 . 7 1 . . . . . 5 . . . . 4 . 1 5 5 . 1 Ballistic Gun 8 | . 28 14 14 14 16 8 7 8 15 12 5 10 7 2 5 6 6 2 . . . . . . . Launcher 1 | . . 3 . . . . . 4 . . . 1 . 4 3 . 6 5 5 . . . . 7 4 Slashing Weapon 2 | . . . . . . 1 . . . . . . 2 . . . . . . 9 9 5 5 6 2 Naked Turns . | . . . . . . . . . . . . . . . . . . . . . . . . . . Heaviest Build 179 | 11 59 62 78 78 95 95 97 98 120 128 131 139 139 138 135 131 141 145 179 172 168 165 165 166 132 Greatest Support 88 | 26 26 26 26 26 50 50 48 48 30 70 86 28 88 36 36 36 36 70 70 70 70 70 70 70 17 Greatest Overweight (x) 41 | 1 2 3 2 2 27 2 2 26 3 3 4 4 10 3 3 3 3 11 3 2 2 2 2 41 41 Average Overweight (x) 2 | . . 2 2 2 1 1 1 1 2 2 1 4 2 3 3 3 3 2 2 1 2 2 2 8 8 Largest Inventory Capacity 34 | 6 18 18 20 20 20 20 20 20 28 28 34 28 28 28 28 28 28 28 28 28 28 28 28 28 28 Average Capacity 24 | 5 13 18 19 20 20 20 20 20 26 28 28 28 28 28 28 28 28 28 28 28 28 28 28 28 26 Most Carried 28 | 6 17 18 19 19 20 20 20 20 26 28 28 28 28 28 28 28 28 28 28 28 28 28 28 28 22 Average Carried 22 | 3 11 16 17 19 19 19 19 19 21 26 27 27 27 27 27 28 28 27 26 27 27 27 28 21 18 Final Capacity 28 | 6 18 18 20 20 20 20 20 20 28 28 28 28 28 28 28 28 28 28 28 28 28 28 28 28 4 Final Carried 28 | 6 17 16 19 19 20 20 20 20 26 28 28 28 28 28 28 28 28 26 28 28 28 28 28 19 4 Class Distribution -------------------- 61% | Hauler-Mutant 17% | Bothacker-Mutant 14% | Hacker-Mutant 3% | Mutant Dominant Class ---------------- Mutant | -10/Materials Mutant | -10/Mines Hauler-Mutant | -10/Exiles Hauler-Mutant | -9/Mines Hauler-Mutant | -8/Materials Hacker-Mutant | -7/Factory Hacker-Mutant | -7/Lower Caves Hacker-Mutant | -7/Lower Caves Hauler-Mutant | -7/Zion Hauler-Mutant | -6/Proximity Caves Scavenger-Mutant | -6/Factory Hauler-Mutant | -6/Garrison Bothacker-Mutant | -6/Factory Bothacker-Mutant | -6/Lower Caves Bothacker-Mutant | -6/Lower Caves Bothacker-Mutant | -6/Data Miner Bothacker-Mutant | -5/Proximity Caves Bothacker-Mutant | -5/Factory Hauler-Mutant | -5/Waste Hauler-Mutant | -5/Factory Hauler-Mutant | -5/Upper Caves Hauler-Mutant | -5/Upper Caves Hauler-Mutant | -5/Warlord Hauler-Mutant | -4/Proximity Caves Hauler-Mutant | -4/Factory Resources | -11 -10 -10 -10 -9 -8 -7 -7 -7 -7 -6 -6 -6 -6 -6 -6 -6 -5 -5 -5 -5 -5 -5 -5 -4 -4 ----------- Run | Scr Mat Min Exi Min Mat Fac Low Low Zio Pro Fac Gar Fac Low Low Dat Pro Fac Was Fac Upp Upp War Pro Fac Matter Collected 8065 | 257 148 153 150 35 1381 710 186 433 38 193 130 466 1014 245 344 . 165 292 302 445 252 116 . 305 305 Remotely . | . . . . . . . . . . . . . . . . . . . . . . . . . . Salvage Created 9547 | . 268 76 . 15 1893 721 125 334 . 227 184 584 1501 561 80 . 179 177 181 940 153 9 . 892 447 Parts 463 | . 20 14 . 5 121 41 6 15 . 8 5 19 72 10 4 . 9 3 1 57 10 . . 23 20 Haulers Intercepted 12 | . . . . . 6 2 . . . . 2 . 1 1 . . . . . . . . . . . Recyclers Shooed 7 | . . . . . . . . . . . . . 1 . . . . 2 . . . . . . 4 Parts Field Recycled . | . . . . . . . . . . . . . . . . . . . . . . . . . . Retrieved Matter . | . . . . . . . . . . . . . . . . . . . . . . . . . . Parts Self-Destructed 48 | . . . . . . . 3 3 . 9 . . . 5 1 . 3 . . . 9 . . 15 . Prevented 13 | . . . . . . . . 7 . . . . . 5 . . . . . . . . . 1 . Kills | -11 -10 -10 -10 -9 -8 -7 -7 -7 -7 -6 -6 -6 -6 -6 -6 -6 -5 -5 -5 -5 -5 -5 -5 -4 -4 ------- Run | Scr Mat Min Exi Min Mat Fac Low Low Zio Pro Fac Gar Fac Low Low Dat Pro Fac Was Fac Upp Upp War Pro Fac Combat Hostiles Destroyed 177 | . 8 7 . 4 27 10 4 8 . 6 . 21 17 11 2 . 6 2 1 12 4 . . 21 6 Melee 23 | . . . . . . . . . . . . . 1 . . . . . . 12 4 . . 6 . Guns 63 | . 8 2 . . 19 5 1 2 . 5 . 8 11 . 1 . 1 . . . . . . . . Cannons 23 | . . 3 . 1 6 1 . . . . . 1 2 . . . . 2 1 . . . . . 6 AOE 64 | . . 2 . 3 2 3 3 6 . 1 . 12 1 11 1 . 5 . . . . . . 14 . Classes Destroyed 21 | . 4 1 . . 6 3 1 1 . 1 . . 1 1 1 . . . 1 . . . . . . Worker 5 | . . . . . 2 1 . . . . . . 1 . . . . . . . . . . . 1 Builder 6 | . . . . . 1 . . . . . . . 4 . . . . . . . . . . . 1 Tunneler 3 | . . . . . 1 . . . . . . . 1 . . . . . . 1 . . . . . Hauler 12 | . . . . . 6 2 . . . . 2 . 1 1 . . . . . . . . . . . Recycler 7 | . . . . . 1 . . . . . . . 2 . . . . 1 . 1 . . . . 2 Mechanic 3 | . . . . . . 2 . . . . . . . . . . . . . . . . . 1 . Operator 3 | . 1 . . . 1 . . . . . . . 1 . . . . . . . . . . . . Watcher 12 | . 1 . . . 5 3 . . . . . . 1 . . . . . . 2 . . . . . Swarmer 54 | . 3 6 . 4 5 . 3 3 . 3 . 8 . 3 . . 4 . . . 4 . . 7 1 Grunt 66 | . 5 . . . 12 3 . 4 . 3 . 10 10 7 1 . . . . 1 . . . 7 3 Brawler 2 | . . . . . . . . . . . . . 1 . . . . . . . . . . 1 . Duelist 4 | . . . . . . . . . . . . . . 1 . . . . . . . . . 3 . Sentry 26 | . . . . . 10 2 1 . . . . 3 2 . . . . 1 . 4 . . . 2 1 Demolisher 1 | . . 1 . . . . . . . . . . . . . . . . . . . . . . . Hunter 4 | . . . . . . 1 . . . . . . . . . . . . . 2 . . . . 1 Programmer 17 | . . . . . . 4 . . . . . . 4 . 1 . 2 1 . 5 . . . . . Behemoth 2 | . . . . . . . . 1 . . . . . . . . . . . . . . . 1 . Compactor 1 | . . . . . . . . . . . . . . . . . . . 1 . . . . . . Decomposer 4 | . . . . . . . . 3 . . . . . . . . . . . . . 1 . . . Samaritan 7 | . . . . . . . 1 1 . . . . . 2 . . 2 . . . 1 . . . . Tinkerer 1 | . . . . . . . . . . . . . . . 1 . . . . . . . . . . Fireman 1 | . . . . . . . . . . 1 . . . . . . . . . . . . . . . Best Kill Streak 14 | . 3 4 . 4 4 4 4 3 . 3 1 7 3 6 1 . 4 1 1 3 4 . . 14 5 Combat Bots Only 13 | . 3 3 . 4 4 4 4 3 . 3 . 7 3 5 1 . 4 1 1 2 4 . . 13 3 Max Kills in Single Turn 4 | . 1 3 . 2 3 3 3 3 . 1 1 3 2 4 1 . 4 1 1 1 1 1 . 3 2 Gunslinging . | . . . . . . . . . . . . . . . . . . . . . . . . . . Exploded 4 | . . 2 . 2 2 3 3 3 . 1 . 3 1 3 1 . 4 . . . . . . 3 . Melee 1 | . . . . . . . . . . . . . 1 . . . . . . 1 1 . . 1 . Uniques/NPCs Destroyed . | . . . . . . . . . . . . . . . . . . . . . . . . . . Combat | -11 -10 -10 -10 -9 -8 -7 -7 -7 -7 -6 -6 -6 -6 -6 -6 -6 -5 -5 -5 -5 -5 -5 -5 -4 -4 -------- Run | Scr Mat Min Exi Min Mat Fac Low Low Zio Pro Fac Gar Fac Low Low Dat Pro Fac Was Fac Upp Upp War Pro Fac Damage Taken 17720 | . 196 309 . 84 2104 1208 227 1175 . 485 . 1380 2402 242 123 . 217 234 . 1357 89 . . 3318 2570 Core 3085 | . 61 27 . 16 109 149 51 156 . 89 . 181 521 6 15 . 16 . . 213 7 . . 314 1154 Absorbed by Shields . | . . . . . . . . . . . . . . . . . . . . . . . . . . Core Remaining (%) 55 | 100 . . . 58 80 . . . . 36 . . . . . . 13 . . . . . . 46 . Volleys Fired 648 | . 21 8 . 4 164 49 9 42 . 15 5 58 75 34 7 . 17 16 28 8 16 1 . 28 43 Largest 2 | . 2 2 . 2 2 2 2 2 . 2 2 2 2 2 2 . 2 2 2 1 1 1 . 1 2 Hottest 165 | . 40 91 . 91 98 86 108 126 . 103 70 120 118 133 69 . 75 87 126 90 90 90 . 90 165 Shots Fired 1023 | . 42 16 . 5 296 90 12 66 . 30 10 91 130 39 11 . 19 18 32 9 15 3 . 32 57 Gun 636 | . 42 8 . 1 230 87 4 48 . 28 5 64 95 . 7 . 14 2 . . . . . . 1 Cannon 280 | . . 6 . 1 65 2 7 14 . . 5 9 26 24 . . . 15 22 9 15 3 . 9 48 Launcher 88 | . . 2 . 3 1 1 1 4 . 2 . 18 4 15 4 . 5 . 4 . . . . 23 1 Special 19 | . . . . . . . . . . . . . 5 . . . . 1 6 . . . . . 7 Kinetic 646 | . 42 8 . 1 230 68 4 48 . 20 10 64 93 . 7 . 14 17 . . . . . . 20 Thermal 248 | . . 6 . 1 65 16 7 . . 8 . 6 28 24 . . . . 22 9 15 3 . 9 29 Explosive 61 | . . 2 . 3 1 1 1 4 . 2 . 18 . 6 4 . 5 . . . . . . 13 1 Electromagnetic 49 | . . . . . . 5 . 14 . . . 3 4 9 . . . . 4 . . . . 10 . Robot Hit Streak 18 | . 7 6 . 1 17 18 8 9 . 6 5 9 8 9 3 . 7 5 12 1 . 2 . 15 10 Robot Miss Streak 12 | . 4 3 . 1 12 12 2 7 . 6 1 6 10 1 1 . 4 3 1 . . . . 2 5 Penetration Max 1 | . . . . . . . . . . . . 1 1 . . . . . . . . . . . . Secondary Targets 3 | . . . . . . . . . . 1 . . 2 . . . . . . . . . . . . Max Gunslinging Chain 1 | . . . . . . . . . . 1 . . 1 . . . . . . . . . . . . Shots Hit Robots 800 | . 25 6 . 1 195 83 10 52 . 23 8 60 107 11 10 . 13 8 26 55 6 1 . 55 45 Core Hits 583 | . 16 9 . 6 87 57 17 43 . 25 3 58 78 42 7 . 21 5 3 30 5 1 . 49 21 Critical Hits 18 | . . 1 . . 2 . . . . . . 2 4 . . . . . . 1 . . . 2 6 Critical Kills 11 | . . 1 . . 1 . . . . . . 2 3 . . . . . . 1 . . . . 3 Critical Parts Destroyed 7 | . . . . . 1 . . . . . . . 1 . . . . . . . . . . 2 3 Melee Attacks 237 | . . . . . . 10 . . . . . . 25 . 2 . . . . 127 25 . . 48 . Impact . | . . . . . . . . . . . . . . . . . . . . . . . . . . Slashing 101 | . . . . . . 10 . . . . . . 22 . . . . . . 39 11 . . 19 . Piercing 136 | . . . . . . . . . . . . . 3 . 2 . . . . 88 14 . . 29 . Sneak Attacks 16 | . . . . . . 2 . . . . . . 7 . 2 . . . . 4 1 . . . . Combat Hostiles . | . . . . . . . . . . . . . . . . . . . . . . . . . . Follow-up Attacks 33 | . . . . . . . . . . . . . . . . . . . . 17 1 . . 15 . Damage Inflicted 27625 | . 283 220 . 118 3377 1841 606 1759 . 413 286 3296 3528 1777 511 . 731 304 591 2121 310 40 . 3748 1765 Guns 8193 | . 283 38 . . 2401 1286 81 917 . 241 97 807 1626 . 113 . 260 28 . . . . . . 15 Cannons 5047 | . . 82 . 20 863 59 153 159 . . 189 184 536 227 . . . 276 586 37 . 40 . . 1636 Explosions 9422 | . . 100 . 98 113 260 372 683 . 172 . 2305 541 1550 194 . 471 . 5 . . . . 2444 114 Melee 4963 | . . . . . . 236 . . . . . . 825 . 204 . . . . 2084 310 . . 1304 . Ramming . | . . . . . . . . . . . . . . . . . . . . . . . . . . Kinetic 8953 | . 283 38 . . 2401 883 81 917 . 199 286 807 1626 . 113 . 260 304 . . . . . . 755 Thermal 4276 | . . 82 . 20 863 327 153 69 . 42 . 199 735 227 . . . . 586 37 . 40 . . 896 Explosive 8077 | . . 100 . 98 113 260 372 614 . 172 . 2265 86 1128 194 . 471 . . . . . . 2090 114 Electromagnetic 1356 | . . . . . . 135 . 159 . . . 25 256 422 . . . . 5 . . . . 354 . Impact . | . . . . . . . . . . . . . . . . . . . . . . . . . . Slashing 2317 | . . . . . . 236 . . . . . . 825 . . . . . . 674 48 . . 534 . Piercing 2646 | . . . . . . . . . . . . . . . 204 . . . . 1410 262 . . 770 . Highest Corruption 18 | . . . . . . 7 7 7 7 . . . 3 3 4 4 5 3 10 16 16 16 16 18 3 Average Corruption 9 | . . . . . . 4 7 7 7 . . . 2 3 3 4 4 2 9 10 16 16 16 15 2 Corruption Purged 9 | . . . . . . . . . . . . . . . . . . . . . . . . 9 . Effects 533 | . . . . . . 38 14 51 4 . . . 12 11 11 3 16 3 30 93 92 25 3 118 9 Message Errors 120 | . . . . . . 11 3 17 . . . . 6 4 3 3 2 . 2 22 23 1 1 21 1 Matter Fused 113 | . . . . . . 6 5 11 . . . . 1 3 2 . 5 . 5 25 19 5 2 22 2 Heat Flow Errors 67 | . . . . . . 7 1 7 2 . . . 1 2 2 . 5 . 4 5 14 3 . 14 . Energy Discharges 51 | . . . . . . 5 1 7 1 . . . 2 1 3 . 1 2 5 7 3 2 . 11 . Parts Rejected 2 | . . . . . . . . . . . . . . . . . . . . 2 . . . . . Data Loss (minor) 50 | . . . . . . 2 2 3 1 . . . 2 1 1 . 1 1 2 13 7 2 . 10 2 Data Loss (major) 21 | . . . . . . 3 . 2 . . . . . . . . 1 . 1 1 3 1 . 9 . Misfires 12 | . . . . . . 1 1 2 . . . . . . . . . . . 1 1 2 . 4 . Alerts 13 | . . . . . . . . . . . . . . . . . . . . 2 4 1 . 6 . Misdirections 39 | . . . . . . . . . . . . . . . . . . . 6 8 11 7 . 7 . Targeting Errors 41 | . . . . . . 3 . 2 . . . . . . . . 1 . 5 7 5 1 . 14 3 Weapon Failures 4 | . . . . . . . 1 . . . . . . . . . . . . . 2 . . . 1 Overload Shots . | . . . . . . . . . . . . . . . . . . . . . . . . . . Overflow Damage 791 | . . . . . 1 202 35 27 . 7 . 92 186 10 . . . 14 . 64 . . . 107 46 Projectiles 71 | . . . . . 1 . . . . . . . . 10 . . . 14 . . . . . . 46 Explosions 398 | . . . . . . 46 35 27 . 7 . 92 94 . . . . . . . . . . 97 . Melee 322 | . . . . . . 156 . . . . . . 92 . . . . . . 64 . . . 10 . Knockbacks 8 | . . . . . . . . . . . . . . . . . . . . . . . . . 8 Impact . | . . . . . . . . . . . . . . . . . . . . . . . . . . Kinetic 8 | . . . . . . . . . . . . . . . . . . . . . . . . . 8 Secondary . | . . . . . . . . . . . . . . . . . . . . . . . . . . Self-Inflicted Damage 1027 | . . 39 . . . 209 23 . . 23 . 50 267 38 . . 67 . . . . . . 311 . Shots 30 | . . 1 . . . 4 2 . . 1 . 1 4 2 . . 3 . . . . . . 12 . Rammed . | . . . . . . . . . . . . . . . . . . . . . . . . . . Targets Rammed . | . . . . . . . . . . . . . . . . . . . . . . . . . . Kicked . | . . . . . . . . . . . . . . . . . . . . . . . . . . Crushed . | . . . . . . . . . . . . . . . . . . . . . . . . . . Highest Temperature 539 | . 6 80 . 33 409 539 194 205 176 270 . 45 402 216 258 . 232 24 450 226 244 239 . 225 219 Average Temperature 87 | . 6 30 . 20 80 126 74 85 82 101 . 22 99 72 108 . 63 9 140 65 87 73 . 84 60 Received Heat Transfer 3315 | . 60 . . . 936 198 51 198 . 42 . 336 648 66 27 . . . . 96 . . . 492 165 Effects 18 | . . . . . 6 6 . 3 . . . . 1 . . . . . 2 . . . . . . Shutdowns 4 | . . . . . 1 1 . . . . . . 1 . . . . . 1 . . . . . . Energy Bleed 1 | . . . . . . . . . . . . . . . . . . . 1 . . . . . . Interference 6 | . . . . . 3 . . 3 . . . . . . . . . . . . . . . . . Matter Decay 2 | . . . . . . 2 . . . . . . . . . . . . . . . . . . . Short Circuit 1 | . . . . . 1 . . . . . . . . . . . . . . . . . . . . Damage (minor) 4 | . . . . . 1 3 . . . . . . . . . . . . . . . . . . . Siege Activations . | . . . . . . . . . . . . . . . . . . . . . . . . . . Robots Corrupted 2 | . . . . . . . . . . . . . 1 . . . . . . . . . . 1 . Combat Hostiles 2 | . . . . . . . . . . . . . 1 . . . . . . . . . . 1 . Parts Fried 7 | . . . . . . . . . . . . . 6 . . . . . . . . . . 1 . Impact Corruptions . | . . . . . . . . . . . . . . . . . . . . . . . . . . Robots Melted 2 | . . . . . . 1 . . . . . . 1 . . . . . . . . . . . . Combat Hostiles 2 | . . . . . . 1 . . . . . . 1 . . . . . . . . . . . . Parts Melted 3 | . . . . . . 2 . . . . . . . . . . . . . . . . . . 1 Heat Transferred 5934 | . . 148 . 37 1332 618 300 50 . 74 . 250 900 350 . . . . 900 25 . 25 . . 925 Parts Sabotaged . | . . . . . . . . . . . . . . . . . . . . . . . . . . Parts Stolen . | . . . . . . . . . . . . . . . . . . . . . . . . . . Parts Stripped . | . . . . . . . . . . . . . . . . . . . . . . . . . . Power Chain Reactions 2 | . . . . . . . . 1 . . . 1 . . . . . . . . . . . . . Missiles Intercepted . | . . . . . . . . . . . . . . . . . . . . . . . . . . Alert | -11 -10 -10 -10 -9 -8 -7 -7 -7 -7 -6 -6 -6 -6 -6 -6 -6 -5 -5 -5 -5 -5 -5 -5 -4 -4 ------- Run | Scr Mat Min Exi Min Mat Fac Low Low Zio Pro Fac Gar Fac Low Low Dat Pro Fac Was Fac Upp Upp War Pro Fac Peak Influence 922 | . 254 244 . 90 438 302 . . . . 95 922 529 . . . . 196 78 254 . . . . 225 Initial 483 | . . 99 . . 35 130 . . . . 81 . 483 . . . . . 34 . . . . . . Average 156 | . 131 96 . 50 134 126 . . . . 64 528 295 . . . . 44 52 113 . . . . 30 Maximum Alert Level 3 | . 1 1 . . 2 1 . . . . . 3 2 . . . . . . 1 . . . . 1 Low Security (%) 72 | 100 65 95 . 100 72 76 . . . . 100 14 30 . . . . 100 100 95 . . . . 96 Level 1 19 | . 34 4 . . 26 23 . . . . . 12 40 . . . . . . 4 . . . . 3 Level 2 6 | . . . . . 1 . . . . . . 41 29 . . . . . . . . . . . . Level 3 1 | . . . . . . . . . . . . 30 . . . . . . . . . . . . . Level 4 . | . . . . . . . . . . . . . . . . . . . . . . . . . . Level 5 . | . . . . . . . . . . . . . . . . . . . . . . . . . . High Security . | . . . . . . . . . . . . . . . . . . . . . . . . . . Max Security . | . . . . . . . . . . . . . . . . . . . . . . . . . . Squads Dispatched 36 | . 3 . . . 3 4 . . . . 1 . 10 . . . . 2 . 8 . . . 1 4 Investigation 10 | . 1 . . . 2 1 . . . . 1 . 2 . . . . 1 . 2 . . . . . Extermination 16 | . . . . . . 3 . . . . . . 5 . . . . 1 . 5 . . . . 2 Reinforcement 9 | . 2 . . . 1 . . . . . . . 3 . . . . . . 1 . . . . 2 Assault 1 | . . . . . . . . . . . . . . . . . . . . . . . . 1 . Garrison . | . . . . . . . . . . . . . . . . . . . . . . . . . . Intercept . | . . . . . . . . . . . . . . . . . . . . . . . . . . Construction Impeded 2 | . . . . . . . . . . . . . 1 . . . . . . . . . . . 1 Haulers Reinforced 1 | . . . . . . . . . . . . . . . . . . . . . . . . . 1 Stealth | -11 -10 -10 -10 -9 -8 -7 -7 -7 -7 -6 -6 -6 -6 -6 -6 -6 -5 -5 -5 -5 -5 -5 -5 -4 -4 --------- Run | Scr Mat Min Exi Min Mat Fac Low Low Zio Pro Fac Gar Fac Low Low Dat Pro Fac Was Fac Upp Upp War Pro Fac Distress Signals 6 | . . . . . 2 . . . . . . . . . . . . . . . . . . . 4 Communications Jammed 1 | . . . . . . . . . . . . . . . . . . 1 . . . . . . . Distress Signals 1 | . . . . . . . . . . . . . . . . . . 1 . . . . . . . Times Spotted 278 | . 13 8 . 4 41 22 5 6 . 10 . 28 26 11 2 . 6 6 5 20 6 . . 24 35 Peak Tracking Total 13 | . 4 3 . 4 4 4 5 4 . 3 . 4 3 4 1 . 4 1 2 3 4 . . 8 13 Tactical Retreats 18 | . . . . . 2 . 1 1 . . . 8 . 1 . . . . . . 1 . . . 4 Traps | -11 -10 -10 -10 -9 -8 -7 -7 -7 -7 -6 -6 -6 -6 -6 -6 -6 -5 -5 -5 -5 -5 -5 -5 -4 -4 ------- Run | Scr Mat Min Exi Min Mat Fac Low Low Zio Pro Fac Gar Fac Low Low Dat Pro Fac Was Fac Upp Upp War Pro Fac Traps Triggered 16 | . 2 . . . 1 2 . . . . . 7 2 . . . . 1 . 1 . . . . . Indirectly . | . . . . . . . . . . . . . . . . . . . . . . . . . . Trap Hack Attempts . | . . . . . . . . . . . . . . . . . . . . . . . . . . Triggered . | . . . . . . . . . . . . . . . . . . . . . . . . . . Disarmed . | . . . . . . . . . . . . . . . . . . . . . . . . . . Reprogrammed . | . . . . . . . . . . . . . . . . . . . . . . . . . . Reused . | . . . . . . . . . . . . . . . . . . . . . . . . . . Traps Extracted . | . . . . . . . . . . . . . . . . . . . . . . . . . . Installed . | . . . . . . . . . . . . . . . . . . . . . . . . . . Triggered 4 | . . . . . . . . 2 . . . . . 1 . . . . . . . 1 . . . Machines | -11 -10 -10 -10 -9 -8 -7 -7 -7 -7 -6 -6 -6 -6 -6 -6 -6 -5 -5 -5 -5 -5 -5 -5 -4 -4 ---------- Run | Scr Mat Min Exi Min Mat Fac Low Low Zio Pro Fac Gar Fac Low Low Dat Pro Fac Was Fac Upp Upp War Pro Fac Machines Disabled 30 | . 1 . . . 3 8 . . . . . 4 10 . . . . 2 . . 1 . . 1 . Max in Single Turn 6 | . 1 . . . 1 5 . . . . . 1 6 . . . . 1 . . 1 . . 1 . Garrison Access 2 | . . . . . . . . . . . . . 2 . . . . . . . . . . . . Garrison Relay 2 | . . . . . . . . . . . . 2 . . . . . . . . . . . . . Machines Sabotaged . | . . . . . . . . . . . . . . . . . . . . . . . . . . Garrisons Compromised . | . . . . . . . . . . . . . . . . . . . . . . . . . . Overloaded Fab Kills . | . . . . . . . . . . . . . . . . . . . . . . . . . . Fab Network Shutdowns . | . . . . . . . . . . . . . . . . . . . . . . . . . . Hacking | -11 -10 -10 -10 -9 -8 -7 -7 -7 -7 -6 -6 -6 -6 -6 -6 -6 -5 -5 -5 -5 -5 -5 -5 -4 -4 --------- Run | Scr Mat Min Exi Min Mat Fac Low Low Zio Pro Fac Gar Fac Low Low Dat Pro Fac Was Fac Upp Upp War Pro Fac Machines Accessed 61 | . 1 1 . . 9 13 . . . . 2 . 11 . 1 4 . 4 . 12 3 . . . . Terminals 36 | . 1 1 . . 8 7 . . . . . . 6 . . . . 2 . 10 1 . . . . Fabricators 7 | . . . . . . 3 . . . . . . 1 . . . . 2 . 1 . . . . . Repair Stations 2 | . . . . . . 1 . . . . . . 1 . . . . . . . . . . . . Recycling Units 2 | . . . . . . 2 . . . . . . . . . . . . . . . . . . . Scanalyzers 4 | . . . . . 1 . . . . . 1 . 1 . . . . . . 1 . . . . . Garrison Access 3 | . . . . . . . . . . . 1 . 2 . . . . . . . . . . . . Total Hacks 162 | . 2 1 . . 25 29 . . . . 6 . 24 . 1 26 . 12 . 33 3 . . . . Successful 104 | . 1 1 . . 14 18 . . . . 3 . 18 . 1 26 . 5 . 14 3 . . . . Failed 57 | . 1 . . . 11 11 . . . . 3 . 6 . . . . 7 . 18 . . . . . Catastrophic 11 | . . . . . 1 3 . . . . . . . . . . . 4 . 3 . . . . . Database Lockouts 1 | . . . . . . . . . . . . . . . . . . . . 1 . . . . . Manual 36 | . . 1 . . 9 6 . . . . . . 5 . . . . . . 15 . . . . . Terminals 93 | . 2 1 . . 22 19 . . . . . . 14 . . . . 5 . 29 1 . . . . Fabricators 16 | . . . . . . 4 . . . . . . 3 . . . . 7 . 2 . . . . . Repair Stations 4 | . . . . . . 2 . . . . . . 2 . . . . . . . . . . . . Recycling Units 4 | . . . . . . 4 . . . . . . . . . . . . . . . . . . . Scanalyzers 12 | . . . . . 3 . . . . . 5 . 2 . . . . . . 2 . . . . . Garrison Access 4 | . . . . . . . . . . . 1 . 3 . . . . . . . . . . . . Terminal Hacks 65 | . 1 1 . . 9 10 . . . . . . 7 . 1 26 . . . 7 3 . . . . Record 12 | . . . . . . . . . . . . . . . . 11 . . . . 1 . . . . Part Schematic 6 | . . . . . . . . . . . . . . . . 5 . . . 1 . . . . . Robot Schematic 7 | . . . . . . . . . . . . . . . . 7 . . . . . . . . . Robot Analysis 3 | . . . . . 2 1 . . . . . . . . . . . . . . . . . . . Prototype ID Bank 9 | . . . . . . 3 . . . . . . . . . 3 . . . 3 . . . . . Open Door 3 | . . . . . . . . . . . . . . . 1 . . . . . 2 . . . . Branch Access Points 3 | . . . . . . 1 . . . . . . 1 . . . . . . 1 . . . . . Machine Index 1 | . . . . . . . . . . . . . 1 . . . . . . . . . . . . Terminal Index 3 | . . . . . . 1 . . . . . . 1 . . . . . . 1 . . . . . Fabricator Index 1 | . . . . . . 1 . . . . . . . . . . . . . . . . . . . Alert Level 2 | . . . . . 1 1 . . . . . . . . . . . . . . . . . . . Unreport Threat 4 | . . 1 . . 2 . . . . . . . 1 . . . . . . . . . . . . Locate Traps 2 | . . . . . . 1 . . . . . . 1 . . . . . . . . . . . . Dispatch Records 1 | . . . . . 1 . . . . . . . . . . . . . . . . . . . . Recall Investigation 1 | . . . . . . . . . . . . . . . . . . . . 1 . . . . . Registered Components 3 | . 1 . . . 1 . . . . . . . 1 . . . . . . . . . . . . Registered Prototypes 1 | . . . . . . . . . . . . . 1 . . . . . . . . . . . . Zone Layout 3 | . . . . . 2 1 . . . . . . . . . . . . . . . . . . . Fabricator Hacks 12 | . . . . . . 2 . . . . . . 3 . . . . 5 . 2 . . . . . Network Status 3 | . . . . . . 1 . . . . . . 1 . . . . 1 . . . . . . . Load Schematic 4 | . . . . . . . . . . . . . 1 . . . . 2 . 1 . . . . . Build 5 | . . . . . . 1 . . . . . . 1 . . . . 2 . 1 . . . . . Repair Station Hacks 4 | . . . . . . 2 . . . . . . 2 . . . . . . . . . . . . Scan Component 2 | . . . . . . 1 . . . . . . 1 . . . . . . . . . . . . Repair 2 | . . . . . . 1 . . . . . . 1 . . . . . . . . . . . . Recycling Unit Hacks 3 | . . . . . . 3 . . . . . . . . . . . . . . . . . . . Process 1 | . . . . . . 1 . . . . . . . . . . . . . . . . . . . Report Inventory 2 | . . . . . . 2 . . . . . . . . . . . . . . . . . . . Scanalyzer 7 | . . . . . 1 . . . . . 2 . 2 . . . . . . 2 . . . . . Insert Component 4 | . . . . . 1 . . . . . 1 . 1 . . . . . . 1 . . . . . Analyze 3 | . . . . . . . . . . . 1 . 1 . . . . . . 1 . . . . . Garrison Access Hacks 4 | . . . . . . . . . . . 1 . 3 . . . . . . . . . . . . Unlock Access 1 | . . . . . . . . . . . 1 . . . . . . . . . . . . . . Seal Access 2 | . . . . . . . . . . . . . 2 . . . . . . . . . . . . Coupler Status 1 | . . . . . . . . . . . . . 1 . . . . . . . . . . . . Unauthorized Hacks 9 | . . . . . 4 1 . . . . . . 1 . . . . . . 3 . . . . . Terminals 9 | . . . . . 4 1 . . . . . . 1 . . . . . . 3 . . . . . Track 2 | . . . . . 2 . . . . . . . . . . . . . . . . . . . . Botnet 7 | . . . . . 2 1 . . . . . . 1 . . . . . . 3 . . . . . Fabricators . | . . . . . . . . . . . . . . . . . . . . . . . . . . Repair Stations . | . . . . . . . . . . . . . . . . . . . . . . . . . . Recycling Units . | . . . . . . . . . . . . . . . . . . . . . . . . . . Scanalyzers . | . . . . . . . . . . . . . . . . . . . . . . . . . . Garrison Access . | . . . . . . . . . . . . . . . . . . . . . . . . . . Data Cores Recovered . | . . . . . . . . . . . . . . . . . . . . . . . . . . Used . | . . . . . . . . . . . . . . . . . . . . . . . . . . Hacking Detections 43 | . 1 . . . 7 10 . . . . 2 . 7 . . . . 4 . 12 . . . . . Full Trace Events 7 | . . . . . 1 . . . . . 1 . 2 . . . . 1 . 2 . . . . . Feedback Events . | . . . . . . . . . . . . . . . . . . . . . . . . . . Feedback Blocked . | . . . . . . . . . . . . . . . . . . . . . . . . . . Robot Schematics Acquired 7 | . . . . . . . . . . . . . . . . 7 . . . . . . . . . Robots Built . | . . . . . . . . . . . . . . . . . . . . . . . . . . Matter . | . . . . . . . . . . . . . . . . . . . . . . . . . . Time . | . . . . . . . . . . . . . . . . . . . . . . . . . . Total Robot Build Rating . | . . . . . . . . . . . . . . . . . . . . . . . . . . Part Schematics Acquired 7 | . . . . . . . . . . . . . 1 . . 5 . . . 1 . . . . . Parts Built 5 | . . . . . . 1 . . . . . . 1 . . . . 2 . 1 . . . . . Matter 1184 | . . . . . . 168 . . . . . . 190 . . . . 636 . 190 . . . . . Time 347 | . . . . . . 84 . . . . . . 47 . . . . 169 . 47 . . . . . Total Part Build Rating 26 | . . . . . . 4 . . . . . . 5 . . . . 12 . 5 . . . . . Parts Repaired 2 | . . . . . . 1 . . . . . . 1 . . . . . . . . . . . . Time 76 | . . . . . . 38 . . . . . . 38 . . . . . . . . . . . . Parts Recycled . | . . . . . . . . . . . . . . . . . . . . . . . . . . Recycled Matter 83 | . . . . . . 83 . . . . . . . . . . . . . . . . . . . Retrieved Matter . | . . . . . . . . . . . . . . . . . . . . . . . . . . Retrieved Components . | . . . . . . . . . . . . . . . . . . . . . . . . . . Parts Scanalyzed 4 | . . . . . 1 . . . . . 1 . 1 . . . . . . 1 . . . . . Part Schematics Acquired 1 | . . . . . . . . . . . . . 1 . . . . . . . . . . . . Parts Damaged . | . . . . . . . . . . . . . . . . . . . . . . . . . . Bothacking | -11 -10 -10 -10 -9 -8 -7 -7 -7 -7 -6 -6 -6 -6 -6 -6 -6 -5 -5 -5 -5 -5 -5 -5 -4 -4 ------------ Run | Scr Mat Min Exi Min Mat Fac Low Low Zio Pro Fac Gar Fac Low Low Dat Pro Fac Was Fac Upp Upp War Pro Fac Used RIF Installer 1 | . . . . . . . . . . . . 1 . . . . . . . . . . . . . Robots Hacked 12 | . . . . . . . . . . . . . 1 . . . . 1 6 . . . . . 4 Non-combat 2 | . . . . . . . . . . . . . 1 . . . . 1 . . . . . . . Combat 10 | . . . . . . . . . . . . . . . . . . . 6 . . . . . 4 Robot Hacks Applied 13 | . . . . . . . . . . . . . 2 . . . . 1 6 . . . . . 4 find_chute 1 | . . . . . . . . . . . . . . . . . . 1 . . . . . . . purge_threat 2 | . . . . . . . . . . . . . 2 . . . . . . . . . . . . ignore_targets 6 | . . . . . . . . . . . . . . . . . . . 6 . . . . . . formatsys_high 4 | . . . . . . . . . . . . . . . . . . . . . . . . . 4 Relay Couplers Released 12 | . . . . . . 3 . . . . . 9 . . . . . . . . . . . . . Machine Destruction 9 | . . . . . . . . . . . . 9 . . . . . . . . . . . . . Programmers 3 | . . . . . . 3 . . . . . . . . . . . . . . . . . . . Attached 5 | . . . . . . . . . . . . 1 1 . . . . . 1 . . . . . 2 Robots Rewired . | . . . . . . . . . . . . . . . . . . . . . . . . . . Allies Hacked . | . . . . . . . . . . . . . . . . . . . . . . . . . . Hacks Repelled . | . . . . . . . . . . . . . . . . . . . . . . . . . . Allies | -11 -10 -10 -10 -9 -8 -7 -7 -7 -7 -6 -6 -6 -6 -6 -6 -6 -5 -5 -5 -5 -5 -5 -5 -4 -4 -------- Run | Scr Mat Min Exi Min Mat Fac Low Low Zio Pro Fac Gar Fac Low Low Dat Pro Fac Was Fac Upp Upp War Pro Fac Total Allies 10 | . . . . . . . . . 5 . . . . . . . 1 . . . . . . . 4 Largest Group 5 | . . . . . . . . . 5 5 . . . . . . 1 1 1 . . . . . 2 Highest-Rated Group 124 | . . . . . . . . . 124 124 . . . . . . 94 94 94 . . . . . 108 Highest-Rated Ally 94 | . . . . . . . . . 31 31 . . . . . . 94 94 94 . . . . . 54 Total Orders . | . . . . . . . . . . . . . . . . . . . . . . . . . . Ally Attacks 123 | . . . . . . . . . . 33 . . . . . . . 29 57 . . . . . 4 Total Damage 3773 | . . . . . . . . . . 484 . . . . . . . 896 2248 . . . . . 145 Kills 14 | . . . . . . . . . . 2 . . . . . . . 5 5 . . . . . 2 Allies Corrupted 1 | . . . . . . . . . . . . . . . . . . . 1 . . . . . . Allies Melted . | . . . . . . . . . . . . . . . . . . . . . . . . . . Intel | -11 -10 -10 -10 -9 -8 -7 -7 -7 -7 -6 -6 -6 -6 -6 -6 -6 -5 -5 -5 -5 -5 -5 -5 -4 -4 ------- Run | Scr Mat Min Exi Min Mat Fac Low Low Zio Pro Fac Gar Fac Low Low Dat Pro Fac Was Fac Upp Upp War Pro Fac Robot Analysis Total 3 | . . . . . 2 1 . . . . . . . . . . . . . . . . . . . Derelict Logs Recovered 12 | . . 1 . 1 . . 1 1 2 1 . . . 1 1 . 1 . . . 1 1 . . . Drone Launches . | . . . . . . . . . . . . . . . . . . . . . . . . . . Drone Recoveries . | . . . . . . . . . . . . . . . . . . . . . . . . . . Exploration | -11 -10 -10 -10 -9 -8 -7 -7 -7 -7 -6 -6 -6 -6 -6 -6 -6 -5 -5 -5 -5 -5 -5 -5 -4 -4 ------------- Run | Scr Mat Min Exi Min Mat Fac Low Low Zio Pro Fac Gar Fac Low Low Dat Pro Fac Was Fac Upp Upp War Pro Fac Turns Passed 30475 | 53 370 639 357 195 6866 2091 442 1670 2314 703 512 1040 2106 749 493 99 543 869 515 2544 1649 459 72 2481 644 Spaces Moved 14048 | 43 254 431 322 167 2476 1037 274 925 1069 298 278 564 1158 528 341 83 393 510 212 1129 723 222 37 432 142 Core 153 | 2 . . . . 1 . . 6 . . . . . . . . . . . . . . . 80 64 Treads 4840 | . . 70 . . 351 . . 80 1069 298 203 . 162 . . . . 1 143 1129 723 222 37 352 . Legs 4551 | . . . . . 2100 1037 274 839 . . . . . . . . . 232 69 . . . . . . Wheels 4486 | 41 254 361 322 167 24 . . . . . 75 564 996 528 341 83 393 277 . . . . . . 60 Hover 18 | . . . . . . . . . . . . . . . . . . . . . . . . . 18 Flight . | . . . . . . . . . . . . . . . . . . . . . . . . . . Fastest Speed 50 | 50 90 110 110 110 120 150 150 150 200 180 140 140 120 120 120 120 120 120 176 180 200 200 200 180 50 Average Speed 173 | 89 99 127 110 110 163 152 150 162 215 205 169 140 136 120 120 120 120 148 192 185 200 200 200 540 363 Slowest Speed 2100 | 100 110 220 110 110 1400 180 180 1350 220 220 240 140 200 120 120 120 120 220 209 200 200 200 200 2100 2100 Overloaded Moves . | . . . . . . . . . . . . . . . . . . . . . . . . . . Propulsion Burnouts . | . . . . . . . . . . . . . . . . . . . . . . . . . . Robots Hopped 2 | . . . . . . . . . . . . . . . 2 . . . . . . . . . . Cave-ins Triggered . | . . . . . . . . . . . . . . . . . . . . . . . . . . Exploration Rate (%) 48 | 4 43 66 60 40 98 31 54 74 86 43 8 78 25 62 42 70 67 17 93 21 74 44 10 56 5 Regions Visited 25 Branch Regions 15 Pre-discovered Areas 3 | . . . . 1 . . . . . . . . . . 1 1 . . . . . . . . . Known Exits Taken 17 | . . . . . 1 1 1 1 1 1 1 . 1 1 1 1 1 . . 1 1 1 1 1 . Unknown Exits Taken 5 | 1 1 1 1 1 . . . . . . . . . . . . . . . . . . . . . Scrap Searched 23 | . . . . 1 . . 3 2 2 . . . . 1 5 . 2 . . . 3 3 . 1 . Spaces Dug 196 | . . . . . 14 7 . . . . . . 15 13 . . 40 . 3 43 21 . . 40 . Terrain Destroyed 1011 | . . 13 . 13 28 58 28 37 . 32 1 150 64 146 44 . 148 10 4 46 24 1 . 147 17 Melee 67 | . . . . . . 7 . . . . . . 11 . . . . . . 38 10 . . 1 . Projectile 120 | . . . . . 23 . . . . . 1 6 11 17 3 . 1 10 4 8 14 1 . 9 12 AOE 824 | . . 13 . 13 5 51 28 37 . 32 . 144 42 129 41 . 147 . . . . . . 137 5 Terrain Rammed . | . . . . . . . . . . . . . . . . . . . . . . . . . . Walls Destroyed . | . . . . . . . . . . . . . . . . . . . . . . . . . . Machines Disabled . | . . . . . . . . . . . . . . . . . . . . . . . . . . Actions | -11 -10 -10 -10 -9 -8 -7 -7 -7 -7 -6 -6 -6 -6 -6 -6 -6 -5 -5 -5 -5 -5 -5 -5 -4 -4 --------- Run | Scr Mat Min Exi Min Mat Fac Low Low Zio Pro Fac Gar Fac Low Low Dat Pro Fac Was Fac Upp Upp War Pro Fac Total 18933 | 54 332 502 324 172 5003 1445 288 1022 1078 355 314 719 1498 599 409 82 439 603 293 1496 883 237 36 533 217 Wait 3302 | . 24 48 . . 2222 273 . 38 1 33 . 16 158 19 39 . 27 50 21 185 108 8 . 24 8 Move 14020 | 42 253 430 321 166 2475 1036 273 924 1068 297 277 563 1157 527 336 82 392 510 211 1128 722 221 36 431 142 Hop 2 | . . . . . . . . . . . . . . . 2 . . . . . . . . . . Pick Up 166 | 6 15 5 2 . 33 16 1 3 7 3 7 5 18 3 5 . . 3 6 17 3 . . 2 6 Fast Attach 115 | 6 4 1 . . 21 9 . 4 . 2 6 5 12 3 3 . . 8 5 13 3 2 . 3 5 Attach 86 | . . 3 . . 11 11 . 3 1 1 1 3 10 . 2 . . 3 2 16 3 . . 9 7 Detach 20 | . 2 . . . . 6 . . . . 2 . 1 1 1 . . . 1 4 . 1 . . 1 Swap 136 | . 3 3 1 2 26 16 4 6 . 4 2 7 24 6 3 . 3 3 6 7 3 1 . 6 . Drop 204 | . 10 4 . . 51 19 1 2 1 . 14 6 16 6 9 . . 10 13 27 6 3 . 1 5 Fire 648 | . 21 8 . 4 164 49 9 42 . 15 5 58 75 34 7 . 17 16 28 8 16 1 . 28 43 Melee 176 | . . . . . . 10 . . . . . . 25 . 2 . . . . 91 19 . . 29 . Ram . | . . . . . . . . . . . . . . . . . . . . . . . . . . Kick . | . . . . . . . . . . . . . . . . . . . . . . . . . . Crush . | . . . . . . . . . . . . . . . . . . . . . . . . . . Escape Stasis 58 | . . . . . . . . . . . . 56 2 . . . . . . . . . . . . Rewire . | . . . . . . . . . . . . . . . . . . . . . . . . . . Trap . | . . . . . . . . . . . . . . . . . . . . . . . . . . Miscellaneous . | . . . . . . . . . . . . . . . . . . . . . . . . . . Route ------- -11/Scrapyard -10/Materials (discovered 2 exits: [*Mat] / *Min) -10/Mines (discovered 3 exits: [*Mat x2] / [*Exi]) -10/Exiles -9/Mines -8/Materials (discovered 3 exits: *Fac x3) -7/Factory (discovered 2 exits: *Low x2) -7/Lower Caves -7/Lower Caves (discovered 2 exits: *Fac / *Zio) -7/Zion -6/Proximity Caves -6/Factory (discovered 4 exits: Fac / Low / Ext / Gar) -6/Garrison (discovered 3 exits: *Fac x3) -6/Factory (discovered 4 exits: *Low x2 / Ext x2) -6/Lower Caves -6/Lower Caves -6/Data Miner -5/Proximity Caves -5/Factory -5/Waste -5/Factory (discovered 2 exits: *Upp x2) -5/Upper Caves -5/Upper Caves -5/Warlord -4/Proximity Caves -4/Factory History --------- Turn | Location | Event 25 | -11/Scrapyard | Discovered new exit (range 15) 54 | -11/Scrapyard | Entered Materials 163 | -10/Materials | Discovered new exit (range 14) 229 | -10/Materials | Discovered new exit (range 10) 330 | -10/Materials | Build established: Mutant 424 | -10/Materials | Entered Mines 425 | -10/Mines | Assembled infested the area 430 | -10/Mines | Assisted by a Guerilla fighting off Assembled 491 | -10/Mines | Joined a pair of Derelicts in attacking an 0b10 outpost 675 | -10/Mines | Discovered new exit (range 5) 911 | -10/Mines | Learned Materials stockpile data 1049 | -10/Mines | Discovered new exit (range 8) 1057 | -10/Mines | Deemed a non-threat by the Exiles lab entrance 1058 | -10/Mines | Discovered new exit (range 5) 1063 | -10/Mines | Entered Exiles 1091 | -10/Exiles | Met 8R-AWN 1109 | -10/Exiles | Met EX-HEX 1150 | -10/Exiles | Met EX-DEC 1406 | -10/Exiles | Discovered new exit (range 14) 1420 | -10/Exiles | Entered Mines 1463 | -9/Mines | Discovered new exit (range 7) 1469 | -9/Mines | Build established: Hauler-Mutant 1541 | -9/Mines | Learned location of Zion (-7) 1615 | -9/Mines | Entered Materials 1615 | -8/Materials | Evolved 4 slots: Propulsion x1, Utility x3 1701 | -8/Materials | Lost 3 parts (2n1w) 2201 | -8/Materials | Lost 3 parts (2n1u) 2668 | -8/Materials | Discovered new exit (range 16) 5447 | -8/Materials | Discovered new exit (range 4) 7014 | -8/Materials | Discovered new exit (range 13) 8091 | -8/Materials | Identified exit to Factory 8481 | -8/Materials | Entered Factory 8481 | -7/Factory | Evolved 2 slots: Utility x2 8682 | -7/Factory | Identified exit to Lower Caves 8909 | -7/Factory | Build established: Hacker-Mutant 8932 | -7/Factory | Fabricated Remote Datajack? 9039 | -7/Factory | Found Rocket Array 9048 | -7/Factory | Found Rocket Array 10204 | -7/Factory | Lost 3 parts (2n1u) 10254 | -7/Factory | Repaired Carbon-fiber Leg 10572 | -7/Factory | Entered Lower Caves 10574 | -7/Lower Caves | Attracted the attention of an 0b10 checkpoint 10849 | -7/Lower Caves | Discovered new exit (range 8) 10882 | -7/Lower Caves | Learned Factory trap positions 11012 | -7/Lower Caves | Identified exit to Lower Caves 11014 | -7/Lower Caves | Entered another Lower Caves area 11122 | -7/Lower Caves | Discovered new exit (range 4) 11128 | -7/Lower Caves | Identified exit to Factory 12264 | -7/Lower Caves | Spotted B-75 Beast 12413 | -7/Lower Caves | Lost 5 parts (1p2n1u1w) 12420 | -7/Lower Caves | Core integrity fell below 50% 12428 | -7/Lower Caves | Destroyed B-75 Beast 12658 | -7/Lower Caves | Discovered new exit (range 12) 12678 | -7/Lower Caves | Identified exit to Zion 12684 | -7/Lower Caves | Entered Zion 12814 | -7/Zion | System corruption cleaned by Quarantine Array 12870 | -7/Zion | Discovered new exit (range 16) 13175 | -7/Zion | Given A8's code to call for help 13447 | -7/Zion | Build established: Hauler-Mutant 14312 | -7/Zion | Gained Derelict followers 14330 | -7/Zion | Learned location of 1 exit from Factory 14947 | -7/Zion | Found Relay Coupler [Programmer] 14950 | -7/Zion | Found Relay Coupler [Programmer] 14953 | -7/Zion | Found Relay Coupler [Programmer] 14996 | -7/Zion | Identified exit to Proximity Caves 14998 | -7/Zion | Entered Proximity Caves 14998 | -6/Proximity Caves | Accompanied by 5 allies 15026 | -6/Proximity Caves | Attracted the attention of an 0b10 checkpoint 15204 | -6/Proximity Caves | Learned Factory emergency access door positions 15656 | -6/Proximity Caves | Discovered exit to Factory (range 7) 15699 | -6/Proximity Caves | Spotted B-75 Beast 15701 | -6/Proximity Caves | Entered Factory 15701 | -6/Factory | Evolved 2 slots: Utility x2 15702 | -6/Factory | Identified exit to Lower Caves 15702 | -6/Factory | Identified exit to Extension 15703 | -6/Factory | Identified exit to Factory 15704 | -6/Factory | Loaded intel: 95 trap records 15783 | -6/Factory | Identified exit to Garrison 15791 | -6/Factory | Build established: Scavenger-Mutant 16213 | -6/Factory | Entered Garrison 16297 | -6/Garrison | Triggered checkpoint 16378 | -6/Garrison | Triggered checkpoint 16419 | -6/Garrison | Build established: Hauler-Mutant 16426 | -6/Garrison | Destroyed 7 combat bots 16429 | -6/Garrison | Lost 3 parts (1n1u1w) 16503 | -6/Garrison | Discovered new exit (range 10) 16659 | -6/Garrison | Discovered new exit (range 13) 16679 | -6/Garrison | Identified exit to Factory 16742 | -6/Garrison | Triggered checkpoint 16849 | -6/Garrison | Discovered exit to Factory (range 14) 16879 | -6/Garrison | Installed Relay Interface Framework 16914 | -6/Garrison | Triggered checkpoint 16931 | -6/Garrison | Garrison Relay disabled 17044 | -6/Garrison | Triggered checkpoint 17085 | -6/Garrison | Garrison Relay disabled 17253 | -6/Garrison | Entered Factory 17274 | -6/Factory | Discovered exit to Lower Caves (range 9) 17425 | -6/Factory | Build established: Bothacker-Mutant 17590 | -6/Factory | Lost 4 parts (1p1n1u1w) 18496 | -6/Factory | Core integrity fell below 50% 18712 | -6/Factory | Fabricated Imp. Proton Missile Launcher? 18926 | -6/Factory | Repaired Reactive Plating 19005 | -6/Factory | Core integrity fell below 20% 19359 | -6/Factory | Entered Lower Caves 19490 | -6/Lower Caves | Encountered a Warlord checkpoint 19809 | -6/Lower Caves | Spotted B-75 Beast 19871 | -6/Lower Caves | Learned Factory emergency access door positions 20100 | -6/Lower Caves | Discovered new exit (range 7) 20107 | -6/Lower Caves | Identified exit to Lower Caves 20108 | -6/Lower Caves | Entered another Lower Caves area 20387 | -6/Lower Caves | Found Prototype Device 20426 | -6/Lower Caves | Identified Heart of Steel 20563 | -6/Lower Caves | Discovered new exit (range 4) 20600 | -6/Lower Caves | Identified exit to Data Miner 20601 | -6/Lower Caves | Entered Data Miner 20601 | -6/Data Miner | Discovered new exit (range 6) 20624 | -6/Data Miner | Met Data Miner 20648 | -6/Data Miner | Learned location of Section 7 (-2) 20648 | -6/Data Miner | Acquired the access code to Warlord's prototype stash 20669 | -6/Data Miner | Received God Mode back door access code from Data Miner 20699 | -6/Data Miner | Identified exit to Proximity Caves 20700 | -6/Data Miner | Entered Proximity Caves 20922 | -5/Proximity Caves | Escorted by Enhanced Grunt 21133 | -5/Proximity Caves | Learned Factory garrison access intel 21224 | -5/Proximity Caves | Discovered exit to Factory (range 12) 21243 | -5/Proximity Caves | Entered Factory 21243 | -5/Factory | Accompanied by 1 ally 21243 | -5/Factory | Evolved 2 slots: Utility x1, Weapon x1 21245 | -5/Factory | Loaded intel: 4 garrison access locations 21549 | -5/Factory | Fabricated Exp. Sensor Array? 21895 | -5/Factory | Fabricated Exp. Flexi-carbon Leg? 22105 | -5/Factory | Spotted B-75 Beast 22112 | -5/Factory | Sucked down chute 22112 | -5/Factory | Entered Waste 22115 | -5/Waste | 1 allies followed down the chute 22127 | -5/Waste | EMP discharged 22127 | -5/Waste | Spotted C-40 Crusher 22134 | -5/Waste | Allies destroyed C-40 Crusher 22140 | -5/Waste | Spotted C-40 Crusher 22156 | -5/Waste | Spotted C-40 Crusher 22165 | -5/Waste | Allies destroyed C-40 Crusher 22200 | -5/Waste | Found Unknown Protection 22200 | -5/Waste | Identified Damper Plating 22213 | -5/Waste | Spotted C-40 Crusher 22227 | -5/Waste | EMP discharged 22233 | -5/Waste | Destroyed C-40 Crusher 22258 | -5/Waste | Spotted C-40 Crusher 22274 | -5/Waste | Allies destroyed C-40 Crusher 22280 | -5/Waste | Spotted C-40 Crusher 22304 | -5/Waste | Allies destroyed C-40 Crusher 22327 | -5/Waste | EMP discharged 22327 | -5/Waste | System corruption reached 10% 22427 | -5/Waste | EMP discharged 22527 | -5/Waste | EMP discharged 22550 | -5/Waste | Found Prototype Device 22550 | -5/Waste | Identified Exp. Thermal Shield 22605 | -5/Waste | Discovered new exit (range 12) 22622 | -5/Waste | Build established: Hauler-Mutant 22625 | -5/Waste | Identified exit to Factory 22627 | -5/Waste | EMP discharged 22627 | -5/Waste | Entered Factory 22848 | -5/Factory | Discovered new exit (range 15) 22890 | -5/Factory | Identified exit to Upper Caves 23084 | -5/Factory | Incoming investigation squad redirected 23773 | -5/Factory | Incoming investigation squad redirected 23884 | -5/Factory | Central database locked down 24322 | -5/Factory | Fabricated Adv. Melee Analysis Suite? 24994 | -5/Factory | Found Unknown Protection 24994 | -5/Factory | Identified Hvy. Reactive Plating 25171 | -5/Factory | Entered Upper Caves 25856 | -5/Upper Caves | Learned Factory emergency access door positions 26804 | -5/Upper Caves | Discovered new exit (range 9) 26818 | -5/Upper Caves | Identified exit to Upper Caves 26820 | -5/Upper Caves | Entered another Upper Caves area 27054 | -5/Upper Caves | Identified exit to Warlord 27279 | -5/Upper Caves | Entered Warlord 27331 | -5/Warlord | Discovered new exit (range 12) 27349 | -5/Warlord | Identified exit to Proximity Caves 27351 | -5/Warlord | Entered Proximity Caves 27351 | -4/Proximity Caves | Spotted B-86 Titan 27478 | -4/Proximity Caves | Destroyed B-86 Titan 27484 | -4/Proximity Caves | Found Hvy. Reflective Plating 27588 | -4/Proximity Caves | Attracted the attention of an 0b10 checkpoint 28112 | -4/Proximity Caves | Attracted the attention of an 0b10 outpost 28180 | -4/Proximity Caves | Core integrity fell below 50% 28191 | -4/Proximity Caves | Lost 11 parts (2p2n5u2w) 28201 | -4/Proximity Caves | Destroyed 13 combat bots 29260 | -4/Proximity Caves | Discovered new exit (range 15) 29811 | -4/Proximity Caves | Identified exit to Factory 29832 | -4/Proximity Caves | Entered Factory 29832 | -4/Factory | Evolved 2 slots: Propulsion x1, Utility x1 30158 | -4/Factory | Lost 3 parts (3w) 30453 | -4/Factory | Core integrity fell below 50% 30471 | -4/Factory | Core integrity fell below 20% 30476 | -4/Factory | Destroyed by G-67 Veteran with Electrolaser Last Messages --------------- 30459_ Subcomponent Replicator disabled. 30459_ Slug penetrates Wall. 30462_ R-10 Processor collects Wheel. 30463_ Penetrated by Slug. 30467_ K-01 Serf cleans the Nuclear Reactor. 30467_ C-30 ARC bursts open, deploying its payload. 30467_ G-73 Enforcer unfolds itself. 30467_ G-67 Veteran unfolds itself. 30467_ K-01 Serf destroyed. 30467_ Slug penetrates K-01 Serf. 30467_ K-01 Serf destroyed. 30467_ K-01 Serf collects debris. 30467_ Acquired 24 matter. 30468_ K-01 Serf collects debris. 30469_ R-10 Processor collects Wheel. 30471_ K-01 Serf pushes G-67 Veteran. 30471_ K-01 Serf pushes S-27 Virus. 30473_ K-01 Serf latches onto L-61 Swordsman. 30473_ K-01 Serf pushes L-61 Swordsman. 30473_ K-01 Serf collects debris. Map ----- +----------------------------------------------------+ | ?????????????????????????????????????????????????? | | ???????????+?????????????????????????????????????? | | ?????????????????????????????????????????????????? | | ?????????????????????????????????????????????????? | | ?????????????????????????????????????????????????? | | ?????????????????????????????????????????????????? | | ??????????????????+??????????????????????????????? | | ?????????????????????????????????????????????????? | | ?????????????????????????????????????????????????? | | ?????????????????????????????????????????????????? | | ###??????????????????????w ?????????????????????? | | #??????????????????????u ???????????????????? | | #?????????????????????? k #??????????????????? | | #?????????????????????? #####??????????????? | | #?????????????????????? ????????????? | | #?????????????????????? ????????????? | | ]#?????????????????????? #???????????? | | #?????????????????????# w #???????????? | | #?????????????????????# #???????????? | | #?????????????????????# #???????????? | | ######################### u #???????????? | | u w #???????????? | | +???????????? | | * g #???????????? | | =%! g k #???????????? | | * g% @ #???????????? | | #####/####################+##### #???????????? | | ???# ?????????????????????????????????????????? | | ???# """ ????????????????????????????????????????? | | ???# """ ???????????????????????????????????????? | | ???# """ ?????????????????????????????????????? | | ???# ? """????????????????????????????????????? | | ???#^????? ??????????????????????????????????????? | | ???+ ????????????????????????????????????????????? | | ???# ????????????????????????????????????????????? | | ????#????????????????????????????????????????????? | | ?????????????????????????????????????????????????? | | ?????????????????????????????????????????????????? | | ?????????????????????????????????????????????????? | | ?????????????????????????????????????????????????? | | ?????????????????????????????????????????????????? | | ?????????????????????????????????????????????????? | | ?????????????????????????????????????????????????? | | ?????????????????????????????????????????????????? | | ?????????????????????????????????????????????????? | | ?????????????????????????????????????????????????? | | ?????????????????????????????????????????????????? | | ?????????????????????????????????????????????????? | | ?????????????????????????????????????????????????? | | ?????????????????????????????????????????????????? | +----------------------------------------------------+ Best States ------------- Heat Dissipation 71 Coolant Potential 65 Energy Generation 21 Energy Capacity 325 Matter Stores 300 Matter Capacity 450 Sight Range 16 Robot Scan Range 30 Terrain Scan Density 10 Jamming Range 12 Armor Coverage 1200 Resistance: KI 40 Resistance: TH 25 Resistance: EM 90 Utility Shielding 90 Melee Speed Boost 40 Evasion (%) 50 Melee Accuracy 8 Target Analysis 6 Recoil Reduction 3 Particle Charging 20 Offensive Hacking 20 Defensive Hacking 10 Relay Coupler Types 95 Relay Coupler Value 1 Item Schematics ----------------- Imp. Proton Missile Launcher | -6/Factory | Scanalyzed Combat Drone Bay | -6/Data Miner | Free Lgt. Regenerative Plating | -6/Data Miner | Free Exp. Flexi-carbon Leg | -6/Data Miner | Free Exp. Sensor Array | -6/Data Miner | Free Cloaking Device | -6/Data Miner | Free Adv. Melee Analysis Suite | -5/Factory | Hacked Robot Schematics ------------------ S-27 Virus | -6/Data Miner | Free G-50 Soldier | -6/Data Miner | Free X-72 Disruptor | -6/Data Miner | Free H-66 Slayer | -6/Data Miner | Free P-70 Sage | -6/Data Miner | Free I-36 Angel | -6/Data Miner | Free I-47 Archangel | -6/Data Miner | Free Fabricated ------------ Remote Datajack | x1 | -7/Factory | Preloaded Imp. Proton Missile Launcher | x1 | -6/Factory Exp. Sensor Array | x1 | -5/Factory Exp. Flexi-carbon Leg | x1 | -5/Factory Adv. Melee Analysis Suite | x1 | -5/Factory Alien Tech Used ----------------- None Achievements -------------- None Challenges ------------ None Game ------ Seed TrapAluminumLaser Manual? 0 Play Time 04:16:34 Cumulative 85.4 hours Start 2021.06.03 @ 19:07:14 End 2021.06.05 @ 19:36:03 Sessions 3 Manual Loads 0 Difficulty Rogue Special Mode None Game No. 32 Rogue 32 Adventurer 0 Explorer 0 Win Type - Total 1 Types 1/0/0/0/0/0/0/0/0 Lore% 49 Gallery% 59 Achievement% 46 Wizard Run 0 Options --------- ASCII 0 Keyboard 0 Movement Mouse Keybinds 0 Fullscreen 1 Font 18/SmallcapsGlow Map View 76x50 Tactical HUD 1 Map Filters NONE Filters NONE Steam 1 RUN: 38647b80-c32e-44a3-9fe5-3b8dbcd65eaf